bitfinex-derivatives/quotes_ETHF0:USTF0_20220106
["timestamp","ask_amount","ask_price","bid_price","bid_amount"]
[1641488649648,0.397182,3408.3,3407.8,2.42321676]
[1641488651151,1.86443224,3408.3,3407.8,2.42321676]
[1641488651353,0.397182,3408.3,3408.1,1.5]
[1641488651753,4.03241843,3410.3,3408.2,0.459982]
[1641488651954,3.41961843,3410.3,3408.2,1.267482]
[1641488652154,1.4670436,3408.7,3408.2,1.267482]
[1641488652354,1.46693815,3409.0,3408.3,0.254545]
[1641488652553,0.397182,3408.9,3408.3,0.254545]
[1641488652757,0.397182,3408.9,3408.5,2.00479]
[1641488652955,0.397182,3408.9,3408.5,2.259335]
[1641488653158,1.86415243,3408.9,3408.3,1.5]
[1641488653455,1.46697043,3408.9,3408.8,1.5]
[1641488653655,1.49219713,3409.3,3408.8,3.459982]
[1641488653856,2.48699522,3409.8,3409.2,3.0]
[1641488654156,2.48699522,3409.8,3409.7,1.5]
[1641488654456,2.48699522,3409.8,3409.7,1.959982]
[1641488654657,2.48699522,3409.8,3409.7,4.219317]
[1641488655958,3.73012074,3409.8,3409.7,4.603789]
[1641488656359,1.24312552,3409.8,3409.7,4.603789]
[1641488656757,0.24312552,3409.8,3409.7,4.603789]
[1641488656960,0.4663116,3410.4,3409.7,4.603789]
[1641488657159,1.46638962,3410.3,3409.7,4.603789]
[1641488657359,1.46638962,3410.3,3409.9,1.5]
[1641488657558,1.46638962,3410.3,3410.0,0.254545]
[1641488657760,1.46638962,3410.3,3410.1,0.459982]
[1641488658263,1.46638962,3410.3,3410.2,0.254545]
[1641488660563,1.46638962,3410.3,3410.0,0.254545]
[1641488660964,1.46638962,3410.3,3409.7,3.889262]
[1641488661265,0.397182,3410.2,3409.7,2.389262]
[1641488661663,0.397182,3410.2,3409.7,2.643807]
[1641488661863,12.64,3410.5,3409.7,2.643807]
[1641488662063,0.142636,3410.4,3409.7,2.643807]
[1641488662764,1.46644553,3410.2,3409.7,2.643807]
[1641488663467,1.46644553,3410.2,3409.7,4.143807]
[1641488663668,1.46644553,3410.2,3409.7,2.643807]
[1641488664566,1.46644553,3410.2,3409.7,2.00479]
[1641488664767,12.782636,3410.1,3409.1,1.5]
[1641488664967,1.46660468,3409.9,3409.1,1.5]
[1641488665169,12.64,3410.1,3408.7,1.5]
[1641488665369,0.142636,3409.8,3408.1,1.5]
[1641488665569,1.46684132,3409.3,3409.1,1.5]
[1641488665771,1.46684132,3409.3,3409.1,2.281654]
[1641488666169,1.46684132,3409.3,3409.2,0.459982]
[1641488666368,12.64,3410.1,3409.2,0.459982]
[1641488666569,12.64,3410.1,3409.1,2.281654]
[1641488666770,13.64479,3409.8,3409.1,2.281654]
[1641488666969,1.46683271,3409.3,3409.1,2.281654]
[1641488667171,1.46683271,3409.3,3409.2,0.459982]
[1641488667372,1.46683271,3409.3,3409.1,2.281654]
[1641488667573,1.46683271,3409.3,3409.1,1.897182]
[1641488668173,1.46683271,3409.3,3409.1,2.357164]
[1641488668680,0.142636,3409.5,3409.1,2.357164]
[1641488668875,16.10135116,3409.8,3409.1,2.357164]
[1641488669274,0.142636,3409.7,3409.1,1.5]
[1641488670176,0.142636,3409.7,3409.1,1.884472]
[1641488671075,0.142636,3409.7,3409.1,0.384472]
[1641488671281,0.142636,3409.7,3409.3,1.5]
[1641488671776,1.46667781,3409.7,3409.3,1.5]
[1641488672175,1.46667781,3409.7,3409.0,2.00479]
[1641488672377,2.07607781,3409.7,3409.0,3.50479]
[1641488672776,2.07607781,3409.7,3409.0,3.889262]
[1641488673376,2.07607781,3409.7,3409.0,2.389262]
[1641488673579,2.07607781,3409.7,3409.2,1.5]
[1641488673784,0.45505283,3409.6,3409.2,1.5]
[1641488674181,1.92175646,3409.6,3409.2,1.5]
[1641488674382,0.45505283,3409.6,3409.2,1.5]
[1641488674584,1.92178227,3409.6,3409.2,1.5]
[1641488674983,1.92178227,3409.6,3409.4,2.00479]
[1641488676786,1.23739183,3409.9,3409.4,2.00479]
[1641488677088,1.23739183,3409.9,3409.4,3.901972]
[1641488677486,1.23739183,3409.9,3409.6,1.5]
[1641488677886,1.46672944,3409.7,3409.6,1.5]
[1641488678587,1.23739183,3409.9,3409.6,1.5]
[1641488678788,1.46666491,3409.8,3409.6,1.5]
[1641488679389,1.46666491,3409.8,3409.5,0.397182]
[1641488679988,1.46666491,3409.8,3409.6,0.459982]
[1641488680190,1.46666491,3409.8,3409.5,0.397182]
[1641488680388,15.88218183,3410.1,3409.5,0.397182]
[1641488680590,1.46666491,3409.8,3409.5,0.397182]
[1641488682390,1.46666491,3409.8,3409.6,0.459982]
[1641488682590,1.46666491,3409.8,3409.5,0.397182]
[1641488682992,1.46666491,3409.8,3409.4,2.00479]
[1641488684995,1.46666491,3409.8,3409.4,3.50479]
[1641488685396,1.46666491,3409.8,3409.4,2.00479]
[1641488685899,12.64,3410.0,3409.4,2.00479]
[1641488686097,1.46667351,3409.8,3409.4,2.00479]
[1641488686997,1.46667351,3409.8,3409.4,3.901972]
[1641488687196,1.46667351,3409.8,3409.7,1.5]
[1641488687396,1.46667351,3409.8,3409.7,3.213664]
[1641488687898,2.00479,3410.1,3409.7,3.213664]
[1641488688098,2.00479,3410.1,3409.9,1.5]
[1641488688499,2.00479,3410.1,3410.0,0.857164]
[1641488688699,2.00479,3410.1,3410.0,0.397182]
[1641488689602,2.00479,3410.1,3410.0,0.857164]
[1641488690003,2.00479,3410.1,3409.6,1.5]
[1641488690203,2.00479,3410.1,3409.5,0.397182]
[1641488690204,14.10658747,3410.0,3409.5,0.397182]
[1641488690906,1.46658747,3410.0,3409.5,0.397182]
[1641488692113,14.10658747,3410.0,3409.5,0.397182]
[1641488693315,14.10658747,3410.0,3409.4,2.00479]
[1641488693514,14.93178747,3410.0,3409.4,2.00479]
[1641488693716,13.4652,3410.0,3409.4,2.00479]
[1641488694415,1.46661328,3409.9,3409.4,2.00479]
[1641488694618,13.4652,3410.0,3409.4,2.00479]
[1641488694916,1.46661328,3409.9,3409.4,2.00479]
[1641488695116,13.4652,3410.0,3409.4,2.00479]
[1641488695317,1.46661328,3409.9,3409.4,2.401972]
[1641488695515,13.4652,3410.0,3409.4,2.401972]
[1641488695516,0.8252,3410.0,3409.4,2.401972]
[1641488695716,1.46661328,3409.9,3409.5,1.5]
[1641488695916,1.46661328,3409.9,3409.4,2.401972]
[1641488697516,1.46661328,3409.9,3409.4,2.786444]
[1641488697721,1.46661328,3409.9,3409.5,1.5]
[1641488698118,1.46661328,3409.9,3409.6,0.397182]
[1641488698922,2.00479,3410.1,3409.8,1.5]
[1641488699121,1.46647348,3410.3,3410.0,2.00479]
[1641488699323,12.64,3410.6,3410.0,2.00479]
[1641488699524,12.64,3410.6,3410.1,0.384472]
[1641488699721,12.64,3410.6,3410.2,0.397182]
[1641488700322,1.46636381,3410.5,3410.2,0.397182]
[1641488700521,12.64,3410.8,3410.3,0.459982]
[1641488700720,12.64,3410.8,3410.1,0.384472]
[1641488700920,15.041972,3410.7,3409.1,27.4239]
[1641488701120,12.64,3409.8,3409.5,1.5]
[1641488701326,13.4548,3409.8,3408.8,3.50479]
[1641488701621,0.397182,3409.7,3409.0,1.5]
[1641488702222,0.397182,3409.7,3409.2,0.397181]
[1641488702422,0.397182,3409.7,3409.0,1.5]
[1641488703122,2.00479,3409.5,3408.8,2.00479]
[1641488703324,13.037182,3409.4,3408.5,1.5]
[1641488704425,13.037182,3409.4,3408.4,2.00479]
[1641488704628,13.037182,3409.4,3408.7,1.5]
[1641488705226,2.00479,3408.8,3408.7,1.5]
[1641488705727,2.00479,3408.8,3408.7,1.959982]
[1641488705929,2.00479,3408.8,3408.7,1.5]
[1641488706530,2.00479,3408.8,3408.7,1.959982]
[1641488708831,2.00479,3408.8,3408.7,1.5]
[1641488709033,2.00479,3408.8,3408.7,1.959982]
[1641488711333,2.00479,3408.8,3408.7,1.5]
[1641488711534,2.00479,3408.8,3408.7,1.959982]
[1641488712233,1.46686714,3409.4,3408.7,1.959982]
[1641488712436,1.46686714,3409.4,3408.9,1.5]
[1641488712634,15.041972,3409.5,3408.9,1.5]
[1641488712835,2.00479,3409.5,3409.0,0.397181]
[1641488713036,2.00479,3409.5,3409.1,1.5]
[1641488713234,2.00479,3409.5,3409.3,1.5]
[1641488713440,14.64479,3409.5,3408.7,2.00479]
[1641488713735,1.46740957,3408.8,3407.6,1.5]
[1641488713934,12.64,3408.7,3407.5,1.5]
[1641488714135,12.64,3408.7,3407.4,1.5]
[1641488714335,12.64,3408.7,3407.2,1.5]
[1641488715338,12.64,3408.0,3407.3,2.00479]
[1641488715538,0.397182,3407.9,3407.3,2.00479]
[1641488716139,1.86466909,3407.9,3407.3,2.00479]
[1641488716340,0.397182,3407.9,3407.3,2.00479]
[1641488716541,1.46765508,3407.5,3407.3,2.00479]
[1641488716739,1.46765508,3407.5,3407.4,0.459982]
[1641488716940,1.46765508,3407.5,3407.3,2.00479]
[1641488717544,1.86483708,3407.5,3407.3,2.00479]
[1641488718144,1.86483708,3407.5,3407.3,2.464772]
[1641488718443,1.86483708,3407.5,3407.3,2.00479]
[1641488719142,1.46765508,3407.5,3407.4,0.459982]
[1641488719343,2.00479,3408.1,3407.4,2.636182]
[1641488719544,1.46745694,3408.0,3407.4,1.136182]
[1641488719945,1.86463894,3408.0,3407.9,1.5]
[1641488720844,1.46745694,3408.0,3407.9,1.5]
[1641488722146,1.46745694,3408.0,3407.5,1.5]
[1641488722443,14.64479,3408.1,3407.3,2.00479]
[1641488722643,0.397182,3408.0,3407.3,2.00479]
[1641488722846,0.397182,3408.0,3407.3,3.50479]
[1641488723246,1.86463894,3408.0,3407.3,2.00479]
[1641488723746,1.86463894,3408.0,3407.3,3.50479]
[1641488723947,1.86463894,3408.0,3407.3,2.00479]
[1641488724348,0.397182,3408.0,3407.3,2.00479]
[1641488724950,0.397182,3408.0,3407.3,3.50479]
[1641488726050,13.037182,3408.0,3407.3,3.50479]
[1641488726250,13.037182,3408.0,3407.3,2.00479]
[1641488726850,1.46764647,3407.5,3407.3,2.00479]
[1641488727052,0.397182,3407.4,3407.3,2.00479]
[1641488727250,0.641,3407.4,3407.0,2.00479]
[1641488727853,0.397182,3407.3,3407.0,2.00479]
[1641488728852,2.00479,3408.1,3407.1,0.459982]
[1641488729052,2.00479,3408.1,3407.6,1.5]
[1641488729251,1.46752155,3407.8,3407.1,0.5838]
[1641488729451,1.46752155,3407.8,3407.5,1.5]
[1641488729654,0.397182,3408.0,3407.5,1.5]
[1641488730154,1.46751724,3407.8,3407.0,2.00479]
[1641488730354,1.46751724,3407.8,3407.4,1.5]
[1641488730752,1.46751724,3407.8,3407.0,3.50479]
[1641488731154,13.878082,3408.0,3407.0,3.50479]
[1641488731352,2.00479,3407.6,3407.0,2.00479]
[1641488731552,2.00479,3407.6,3407.5,1.5]
[1641488731757,2.00479,3407.6,3407.2,1.5]
[1641488732960,14.64479,3407.6,3407.0,2.00479]
[1641488733157,14.64479,3407.6,3407.0,3.50479]
[1641488733356,2.00479,3407.6,3407.0,3.889262]
[1641488733556,2.00479,3407.6,3407.1,1.5]
[1641488734456,2.00479,3407.6,3407.0,2.389262]
[1641488734657,2.00479,3407.6,3407.1,1.5]
[1641488734858,2.00479,3407.6,3407.0,2.389262]
[1641488735057,2.00479,3407.6,3407.4,1.5]
[1641488735257,2.00479,3407.6,3407.5,0.459982]
[1641488736358,2.00479,3408.1,3407.5,0.459982]
[1641488736559,2.00479,3408.1,3407.7,1.5]
[1641488739066,1.46743971,3408.0,3407.7,1.5]
[1641488739464,1.46743971,3408.0,3407.8,0.459982]
[1641488739764,1.46743971,3408.0,3407.8,1.5]
[1641488740167,2.00479,3408.1,3407.8,2.2336]
[1641488740367,2.00479,3408.1,3408.0,1.5]
[1641488740968,1.95599,3408.1,3408.0,1.5]
[1641488741169,12.64,3408.7,3408.0,1.5]
[1641488741370,2.401972,3408.6,3408.0,1.5]
[1641488741970,2.401972,3408.6,3408.1,1.5]
[1641488742171,1.46730622,3408.3,3408.1,1.5]
[1641488742370,1.86448822,3408.3,3408.1,1.5]
[1641488742572,1.86448822,3408.3,3407.8,2.00479]
[1641488742774,1.86448822,3408.3,3407.8,3.50479]
[1641488743373,0.397182,3408.3,3407.8,3.50479]
[1641488743573,0.397182,3408.3,3407.8,2.00479]
[1641488743773,0.397182,3408.3,3407.9,1.5]
[1641488744573,0.397182,3408.3,3407.8,2.00479]
[1641488744774,0.397182,3408.3,3408.1,1.5]
[1641488745175,2.00479,3409.0,3408.2,1.959982]
[1641488745376,2.00479,3409.0,3408.7,35.67145652]
[1641488745574,2.00479,3409.0,3408.9,1.5]
[1641488745774,2.00479,3409.0,3408.9,0.8143]
[1641488745978,1.46691448,3409.2,3408.9,1.274282]
[1641488746175,14.64479,3409.5,3408.9,1.274282]
[1641488746375,1.466936,3409.2,3408.9,1.274282]
[1641488747374,1.466936,3409.2,3409.0,0.384472]
[1641488747575,2.00479,3409.5,3409.1,1.5]
[1641488747776,2.00479,3409.5,3409.1,1.959982]
[1641488747973,2.00479,3409.5,3409.4,1.5]
[1641488748375,2.00479,3409.5,3409.4,1.959982]
[1641488750177,2.00479,3409.5,3409.4,1.5]
[1641488750377,14.64479,3409.5,3409.4,1.5]
[1641488750576,16.11162271,3409.5,3409.4,1.5]
[1641488750777,2.00479,3409.5,3409.3,1.5]
[1641488751178,2.00479,3409.5,3409.0,0.384472]
[1641488751380,1.46686284,3409.4,3409.0,0.384472]
[1641488751578,14.64479,3409.5,3409.0,0.384472]
[1641488751776,2.00479,3409.5,3409.0,0.384472]
[1641488751977,2.401972,3409.5,3409.4,1.0]
[1641488752178,2.401972,3409.5,3409.4,1.459982]
[1641488752377,2.401972,3409.5,3409.4,1.0]
[1641488752778,15.041972,3409.5,3409.4,1.0]
[1641488752977,16.50883484,3409.5,3409.4,1.0]
[1641488755378,16.50883484,3409.5,3408.5,1.5]
[1641488756681,1.46710386,3408.8,3408.5,1.5]
[1641488756882,1.46710386,3408.8,3408.6,0.844454]
[1641488757083,14.64479,3409.5,3408.6,2.344454]
[1641488757481,14.64479,3409.5,3408.8,1.5]
[1641488757683,0.397182,3409.4,3408.8,1.5]
[1641488757884,0.397182,3409.4,3409.1,1.5]
[1641488758085,0.397182,3409.4,3409.2,0.459982]
[1641488758683,0.397182,3409.4,3409.1,1.5]
[1641488759383,0.397182,3409.4,3409.2,0.459982]
[1641488759784,0.397182,3409.4,3409.1,1.5]
[1641488760284,0.397182,3409.4,3409.2,0.459982]
[1641488760785,1.4670479,3409.3,3409.1,1.5]
[1641488760984,0.397182,3409.2,3409.1,1.5]
[1641488761588,0.397182,3409.2,3408.6,0.384472]
[1641488761787,0.397182,3409.2,3409.1,1.5]
[1641488761987,14.64479,3409.5,3409.4,0.602818]
[1641488762189,15.041971,3409.5,3409.4,0.602818]
[1641488764091,16.5090189,3409.5,3409.4,0.602818]
[1641488764291,15.041971,3409.5,3409.4,0.602818]
[1641488764789,16.5090189,3409.5,3409.4,0.602818]
[1641488766489,3.8690189,3409.5,3409.4,0.602818]
[1641488766692,2.401971,3409.5,3409.4,1.0628]
[1641488766990,1.450771,3409.5,3409.4,1.0628]
[1641488767791,1.450771,3409.5,3409.4,0.602818]
[1641488767792,15.5577113,3409.5,3409.4,0.602818]
[1641488768192,15.5577113,3409.5,3409.1,1.5]
[1641488768592,13.9548933,3409.5,3408.8,1.5]
[1641488768796,13.9548933,3409.5,3409.0,1.5]
[1641488769296,13.9548933,3409.5,3408.9,1.5]
[1641488769493,13.9548933,3409.5,3409.1,1.5]
[1641488770700,13.9548933,3409.5,3409.0,2.00479]
[1641488770898,12.487953,3409.5,3409.0,2.00479]
[1641488771199,12.487953,3409.5,3409.4,1.5]
[1641488771401,12.487953,3409.5,3409.2,1.5]
[1641488772700,14.64479,3409.7,3409.4,1.5]
[1641488772900,14.64479,3409.7,3409.6,1.5]
[1641488774706,14.64479,3409.7,3409.6,1.959982]
[1641488775004,14.64479,3409.7,3409.6,1.5]
[1641488775405,14.64479,3409.7,3409.3,0.397182]
[1641488775607,14.64479,3409.7,3409.4,1.5]
[1641488777509,14.64479,3409.7,3409.5,0.459982]
[1641488777707,14.64479,3409.7,3409.4,1.5]
[1641488778209,14.64479,3409.7,3409.3,0.397182]
[1641488779816,14.64479,3409.7,3409.4,1.5]
[1641488780513,14.64479,3409.7,3409.5,0.459982]
[1641488780714,14.64479,3409.7,3409.4,1.5]
[1641488781114,14.64479,3409.7,3409.3,0.397182]
[1641488781313,14.64479,3409.7,3409.6,1.5]
[1641488781515,14.64479,3409.7,3409.6,3.181064]
[1641488781713,2.00479,3409.7,3409.6,3.181064]
[1641488784417,12.64,3410.0,3409.6,3.181064]
[1641488784617,12.64,3410.0,3409.8,1.5]
[1641488785018,12.64,3410.0,3409.9,0.397182]
[1641488786518,12.64,3410.0,3409.9,0.857164]
[1641488787419,12.64,3410.0,3409.9,1.241636]
[1641488787620,12.64,3410.0,3409.9,0.781654]
[1641488787823,12.64,3410.0,3409.9,1.241636]
[1641488788221,12.64,3410.0,3409.9,0.781654]
[1641488788720,12.64,3410.0,3409.9,1.241636]
[1641488789924,12.64,3410.0,3409.9,0.857164]
[1641488790124,12.64,3410.0,3409.9,0.397182]
[1641488790726,2.45479,3410.7,3409.9,1.630764]
[1641488790931,2.00479,3410.7,3410.3,1.5]
[1641488791127,2.00479,3410.7,3410.3,0.397182]
[1641488791326,2.00479,3410.7,3410.4,1.5]
[1641488791528,2.00479,3410.7,3410.5,0.459982]
[1641488791727,2.00479,3410.7,3410.5,0.857164]
[1641488792127,2.00479,3410.7,3410.6,1.5]
[1641488792327,2.00479,3410.7,3410.6,2.1348]
[1641488792727,14.10628211,3411.2,3410.6,2.1348]
[1641488792728,1.473,3413.6,3410.6,2.1348]
[1641488792928,1.46598762,3411.6,3410.7,1.5]
[1641488793134,2.929,3413.3,3411.4,1.5]
[1641488793329,0.4299,3412.0,3411.4,2.545382]
[1641488793529,1.4659167,3411.7,3411.4,2.942564]
[1641488793730,1.4659167,3411.7,3411.4,2.482582]
[1641488793933,3.4707067,3411.7,3411.4,2.482582]
[1641488794131,12.64,3411.6,3411.4,0.982582]
[1641488794332,12.64,3411.6,3411.4,0.5854]
[1641488794534,1.46611228,3411.5,3410.9,2.00479]
[1641488794734,1.46611228,3411.5,3410.9,3.901972]
[1641488794934,1.46611228,3411.5,3410.9,4.286444]
[1641488795835,1.46611228,3411.5,3410.9,2.786444]
[1641488796035,1.46611228,3411.5,3410.9,2.389262]
[1641488796334,1.46611228,3411.5,3410.9,2.00479]
[1641488796534,1.46632081,3411.0,3410.4,1.5]
[1641488796736,1.46648424,3410.5,3410.4,1.897182]
[1641488796935,1.46627781,3410.9,3410.4,2.741636]
[1641488797137,1.46627781,3410.9,3410.6,1.5]
[1641488797435,19.56810798,3411.3,3410.8,1.5]
[1641488797636,18.102,3411.3,3410.4,0.781654]
[1641488797836,5.462,3411.3,3411.0,1.5]
[1641488798036,5.462,3411.3,3411.1,0.857164]
[1641488798435,5.462,3411.3,3411.1,1.897182]
[1641488798838,14.64479,3411.7,3411.1,1.897182]
[1641488799037,1.46608864,3411.3,3411.1,1.897182]
[1641488799238,14.64479,3411.7,3411.1,1.897182]
[1641488799438,1.46608864,3411.3,3411.1,1.897182]
[1641488799937,1.46608864,3411.3,3411.1,2.357164]
[1641488800138,1.46608864,3411.3,3411.1,1.897182]
[1641488801240,1.46608864,3411.3,3411.1,2.357164]
[1641488801438,1.46608864,3411.3,3411.1,1.897182]
[1641488801942,1.46608864,3411.3,3411.1,2.357164]
[1641488802140,1.46608864,3411.3,3411.1,1.897182]
[1641488803247,1.46608864,3411.3,3411.1,2.357164]
[1641488803544,1.46608864,3411.3,3411.1,1.897182]
[1641488803746,14.64479,3411.7,3411.1,1.897182]
[1641488804146,1.46608864,3411.3,3411.1,1.897182]
[1641488807050,1.46608864,3411.3,3411.1,1.5]
[1641488809056,1.46608864,3411.3,3411.2,0.459982]
[1641488809256,1.46608864,3411.3,3411.2,0.8146]
[1641488809556,14.64479,3411.7,3411.2,0.8146]
[1641488809757,1.46608864,3411.3,3411.2,0.8146]
[1641488810257,14.64479,3411.7,3411.2,0.8146]
[1641488810456,1.46608864,3411.3,3411.2,0.8146]
[1641488812269,0.618,3412.3,3411.2,0.8146]
[1641488812461,0.4458,3412.3,3412.1,1.5]
[1641488812660,0.4405,3413.8,3412.2,0.844454]
[1641488812860,0.4405,3413.8,3412.7,1.5]
[1641488813261,2.929,3414.1,3413.3,1.5]
[1641488813461,5.462,3414.0,3413.5,1.5]
[1641488813661,5.462,3414.0,3413.3,0.8307]
[1641488813862,1.46521649,3413.9,3413.4,0.397182]
[1641488814162,2.00479,3413.6,3413.4,1.897182]
[1641488814362,2.00479,3413.6,3413.5,0.459982]
[1641488814561,2.00479,3413.6,3413.5,0.844454]
[1641488814766,1.46523152,3413.8,3413.5,0.384472]
[1641488815161,1.46523152,3413.8,3412.8,3.50479]
[1641488815763,0.35767465,3413.7,3412.8,3.50479]
[1641488815964,0.35767465,3413.7,3412.8,2.00479]
[1641488816263,3.46289453,3413.7,3413.5,2.00479]
[1641488816463,3.46289453,3413.7,3413.6,0.397182]
[1641488817464,5.462,3414.0,3413.6,0.397182]
[1641488818465,5.462,3414.0,3412.8,1.5]
[1641488818664,5.462,3414.0,3412.4,1.5]
[1641488818866,5.462,3414.0,3411.9,23.2354]
[1641488819066,1.46531096,3413.6,3411.9,24.7354]
[1641488819266,5.462,3414.0,3412.9,1.5]
[1641488819465,5.462,3414.0,3413.1,1.5]
[1641488820166,2.00479,3413.8,3413.3,1.5]
[1641488820371,2.00479,3413.8,3413.4,0.397182]
[1641488821772,2.00479,3413.8,3413.4,0.249282]
[1641488823979,3.47001508,3413.8,3413.4,0.249282]
[1641488824179,2.00479,3413.8,3413.5,1.5]
[1641488824879,2.00479,3413.8,3413.4,0.249282]
[1641488825082,4.0,3413.5,3411.9,23.2354]
[1641488825281,1.5,3412.6,3411.5,1.04514272]
[1641488825479,2.0752,3412.6,3410.8,1.5]
[1641488825679,2.0752,3412.6,3410.9,12.64]
[1641488825879,2.0752,3412.6,3410.8,1.5]
[1641488826180,1.5,3412.3,3411.6,2.00479]
[1641488826380,23.7625,3412.2,3411.6,2.00479]
[1641488826580,0.1479,3412.2,3411.6,2.00479]
[1641488830887,0.1479,3412.2,3411.6,2.401972]
[1641488831884,2.00479,3412.4,3411.6,2.401972]
[1641488832085,0.1479,3412.3,3411.6,2.401972]
[1641488835488,1.5,3412.1,3411.6,2.00479]
[1641488835688,4.0,3411.9,3411.6,2.00479]
[1641488836388,0.1479,3411.8,3411.3,2.00479]
[1641488839289,2.00479,3412.0,3411.4,0.397182]
[1641488839490,2.00479,3412.0,3411.4,0.969782]
[1641488843795,2.15269,3412.0,3411.4,0.969782]
[1641488843995,2.15269,3412.0,3411.3,2.00479]
[1641488844795,1.5,3411.5,3409.4,28.4536]
[1641488844998,1.5,3411.1,3409.4,51.1596]
[1641488845198,12.64,3411.0,3409.4,51.1596]
[1641488845397,29.5903,3411.1,3409.4,51.1596]
[1641488845598,28.0903,3411.1,3409.4,52.6596]
[1641488845798,28.0903,3411.1,3409.6,1.5]
[1641488845999,0.8862,3411.1,3410.1,1.5]
[1641488846200,25.9006,3411.7,3409.7,12.64]
[1641488846398,25.9006,3411.7,3409.6,0.8647]
[1641488846399,2.00479,3411.5,3410.8,2.00479]
[1641488846598,0.1479,3411.4,3410.8,2.00479]
[1641488846800,0.1479,3411.4,3410.8,2.401972]
[1641488847199,2.00479,3411.5,3410.8,2.401972]
[1641488847403,2.00479,3411.5,3410.8,2.786444]
[1641488852703,2.15269,3411.5,3410.8,2.786444]
[1641488853706,2.15269,3411.5,3410.8,2.401972]
[1641488853904,2.15269,3411.5,3410.8,2.786444]
[1641488855406,0.35792464,3411.4,3410.8,2.786444]
[1641488855606,1.24205641,3411.1,3410.8,2.786444]
[1641488856007,1.24205641,3411.1,3410.9,0.459982]
[1641488856208,1.4904677,3411.3,3410.8,2.786444]
[1641488856410,2.15269,3411.5,3410.8,2.786444]
[1641488856610,8.391,3412.2,3411.1,1.5]
[1641488856808,0.4298,3412.6,3411.0,1.5]
[1641488857015,1.89554911,3412.6,3410.8,3.119762]
[1641488857206,26.5577,3412.5,3410.8,3.119762]
[1641488858007,4.0,3412.2,3410.8,3.119762]
[1641488858609,4.0,3412.2,3411.2,2.00479]
[1641488858809,0.1479,3411.9,3411.2,2.00479]
[1641488861812,0.1479,3411.9,3411.3,0.397182]
[1641488862012,0.1479,3411.9,3411.3,0.931282]
[1641488863616,2.00479,3412.0,3411.3,0.931282]
[1641488866515,0.36177054,3411.9,3411.3,0.931282]
[1641488866716,1.24071107,3411.7,3411.3,0.931282]
[1641488867217,0.99256886,3411.4,3411.3,0.931282]
[1641488867417,1.24071107,3411.7,3411.3,1.391264]
[1641488867620,2.00479,3412.0,3411.3,1.391264]
[1641488870520,2.15269,3412.0,3411.3,1.391264]
[1641488870924,2.00479,3412.0,3411.3,1.391264]
[1641488873327,0.1479,3411.9,3411.3,0.397182]
[1641488875433,2.00479,3412.0,3411.3,0.397182]
[1641488876734,0.1479,3411.9,3411.3,0.397182]
[1641488876934,2.00479,3412.0,3411.3,0.397182]
[1641488879139,0.4298,3412.6,3411.4,1.5]
[1641488879340,0.4298,3412.6,3411.5,12.64]
[1641488879738,5.462,3413.2,3411.5,14.14]
[1641488880139,0.99397938,3413.0,3411.5,13.258]
[1641488880338,0.99397938,3413.0,3411.9,1.5]
[1641488880540,0.99397938,3413.0,3412.1,14.14]
[1641488880740,5.462,3413.2,3412.8,2.00479]
[1641488880942,2.00479,3413.6,3412.9,0.857164]
[1641488881142,3.47010526,3413.6,3412.9,0.459982]
[1641488881342,0.9938401,3413.5,3412.9,0.459982]
[1641488881544,0.9938401,3413.5,3413.0,0.397182]
[1641488883342,0.36343698,3413.4,3413.0,0.397182]
[1641488883543,1.85891313,3413.3,3413.0,0.397182]
[1641488883744,2.85275323,3413.3,3413.0,0.397182]
[1641488883947,1.85891313,3413.3,3413.1,0.459982]
[1641488884150,1.85891313,3413.3,3413.1,1.322082]
[1641488884346,2.00479,3413.6,3413.1,1.322082]
[1641488884746,2.00479,3413.6,3413.2,0.397182]
[1641488888250,6.00479,3413.6,3413.2,0.397182]
[1641488888650,0.1479,3413.5,3412.8,2.00479]
[1641488888855,4.0,3413.0,3411.9,26.8593]
[1641488889052,4.0,3413.0,3411.7,0.618]
[1641488889053,1.5,3413.5,3407.3,6.28426405]
[1641488889259,1.5,3413.5,3411.1,1.5]
[1641488889553,0.99402993,3413.4,3411.1,1.5]
[1641488889753,16.64,3413.2,3411.4,1.46541833]
[1641488889953,4.0,3413.2,3411.4,1.46541833]
[1641488890153,0.99402993,3413.1,3411.4,1.46541833]
[1641488890354,4.0,3413.2,3411.4,1.46541833]
[1641488890554,4.0,3413.2,3411.1,2.1847]
[1641488890757,2.00479,3412.9,3412.1,2.00479]
[1641488890956,0.1479,3412.8,3412.1,2.00479]
[1641488892357,0.1479,3412.8,3412.1,2.389262]
[1641488892957,0.8978,3412.8,3412.1,2.00479]
[1641488893359,0.8978,3412.8,3412.1,2.401972]
[1641488893559,0.8978,3412.8,3412.1,2.00479]
[1641488893760,2.36348036,3412.8,3412.1,2.00479]
[1641488894263,0.8978,3412.8,3412.1,2.00479]
[1641488894859,1.23956881,3412.2,3412.1,2.00479]
[1641488895060,1.23956881,3412.2,3412.1,2.464772]
[1641488895262,1.23956881,3412.2,3412.1,2.00479]
[1641488897661,1.23956881,3412.2,3412.1,2.464772]
[1641488898061,1.23956881,3412.2,3412.1,2.00479]
[1641488898562,1.23956881,3412.2,3412.1,2.464772]
[1641488898764,1.23956881,3412.2,3412.1,2.00479]
[1641488900264,1.23956881,3412.2,3412.1,2.464772]